bitfinex/quotes_SOLUSD_20250809
["timestamp","ask_amount","ask_price","bid_price","bid_amount"]
[1754717102963,0.03,181.61,181.6,15.6244927]
[1754717103273,0.03,181.61,181.6,16.2444927]
[1754717104119,0.03,181.62,181.6,31.90136906]
[1754717104267,0.03,181.62,181.61,53.37788478]
[1754717104466,0.03,181.62,181.61,68.48410035]
[1754717104667,0.03,181.62,181.61,4.91678082]
[1754717104668,0.74,181.62,181.61,4.91678082]
[1754717105001,5.50630471,181.61,181.55,5.35378534]
[1754717105288,0.71,181.6,181.59,4.91678082]
[1754717105452,0.71,181.6,181.59,43.24]
[1754717105882,0.71,181.6,181.52,0.06]
[1754717106086,5.62678082,181.6,181.55,4.91678082]
[1754717106265,0.71,181.59,181.55,4.91678082]
[1754717106466,0.71,181.59,181.56,43.22]
[1754717107283,5.50721445,181.58,181.56,43.22]
[1754717107577,0.71,181.58,181.57,4.91678082]
[1754717107889,0.71,181.6,181.57,4.91678082]
[1754717108089,5.50630471,181.61,181.58,43.22]
[1754717108262,5.53600936,181.62,181.58,43.22]
[1754717108462,0.03,181.62,181.58,43.22]
[1754717108685,0.03,181.62,181.61,4.91678082]
[1754717108988,0.74,181.62,181.61,48.11678082]
[1754717109773,6.24600154,181.62,181.61,48.11678082]
[1754717109973,6.24600154,181.62,181.61,43.2]
[1754717110588,0.74,181.62,181.61,48.11678082]
[1754717110887,0.03,181.62,181.61,48.11678082]
[1754717111089,0.03,181.62,181.61,43.2]
[1754717111296,0.03,181.62,181.61,48.11678082]
[1754717111668,0.03,181.62,181.61,53.03356164]
[1754717111870,0.03,181.62,181.61,73.93040506]
[1754717112094,0.03,181.62,181.61,74.55040506]
[1754717112884,0.1,181.63,181.62,15.39053871]
[1754717113083,0.1,181.63,181.62,52.3947005]
[1754717113288,0.1,181.63,181.62,51.84410035]
[1754717113485,0.1,181.63,181.62,41.39053871]
[1754717113689,0.1,181.63,181.62,54.01069433]
[1754717114396,0.1,181.63,181.62,97.15069433]
[1754717114597,6.315789,181.63,181.56,12.38186092]
[1754717114802,0.71,181.62,181.57,58.24621557]
[1754717115101,5.6057304,181.63,181.61,4.91678082]
[1754717115281,5.6057304,181.63,181.62,43.14]
[1754717115802,6.3157304,181.63,181.62,43.14]
[1754717116787,11.23251122,181.63,181.56,2.78393406]
[1754717117074,4.91678082,181.59,181.54,4.91678082]
[1754717117279,0.71,181.58,181.55,43.12]
[1754717118087,5.50751776,181.57,181.55,43.12]
[1754717118374,0.71,181.56,181.55,43.12]
[1754717118819,0.71,181.56,181.55,48.03678082]
[1754717119313,0.71,181.56,181.55,43.12]
[1754717119615,5.62678082,181.56,181.52,0.06]
[1754717119810,4.91678082,181.53,181.48,43.14]
[1754717119983,4.91678082,181.52,181.48,43.14]
[1754717120180,10.42611914,181.51,181.48,0.06]
[1754717120379,6.21933832,181.51,181.48,0.06]
[1754717120681,5.62678082,181.5,181.48,0.06]
[1754717121079,0.71,181.49,181.48,0.06]
[1754717121506,5.62678082,181.49,181.48,0.06]
[1754717122313,11.13672627,181.49,181.48,0.06]
[1754717123589,6.21994545,181.49,181.48,0.06]
[1754717123823,11.13672627,181.49,181.48,0.06]
[1754717124715,0.71,181.53,181.48,4.97678082]
[1754717124921,0.71,181.51,181.49,4.91678082]
[1754717125217,0.71,181.5,181.48,0.06]
[1754717125817,4.91678082,181.49,181.48,0.06]
[1754717126024,0.71,181.5,181.48,0.06]
[1754717126230,0.71,181.49,181.48,0.06]
[1754717126396,6.21994545,181.49,181.48,0.06]
[1754717126990,11.13672627,181.49,181.48,0.06]
[1754717127392,6.21994545,181.49,181.48,0.06]
[1754717127633,11.13672627,181.49,181.48,0.06]
[1754717127835,11.13672627,181.49,181.46,0.06]
[1754717128001,4.91678082,181.47,181.46,1e-08]
[1754717128424,11.13733352,181.47,181.46,1e-08]
[1754717128600,6.2205527,181.47,181.46,1e-08]
[1754717130103,5.51029727,181.48,181.46,4.91678083]
[1754717130332,0.71,181.49,181.46,1e-08]
[1754717130333,6.21997799,181.49,181.46,1e-08]
[1754717130541,0.71,181.47,181.46,1e-08]
[1754717132025,5.50997799,181.49,181.46,1e-08]
[1754717132535,0.71,181.48,181.46,1e-08]
[1754717132911,6.21903481,181.52,181.47,4.91678082]
[1754717133136,6.21903481,181.52,181.48,4.91678082]
[1754717133309,0.71,181.51,181.48,4.91678082]
[1754717133705,5.50877942,181.53,181.5,4.91678082]
[1754717133908,0.72,181.54,181.51,4.91678082]
[1754717134312,6.22845534,181.54,181.51,4.91678082]
[1754717134545,6.22845534,181.54,181.52,0.5]
[1754717135438,5.50751776,181.57,181.52,8.51500195]
[1754717135658,14.24251971,181.57,181.52,8.51500195]
[1754717135942,0.72,181.57,181.55,8.01500195]
[1754717136118,5.50696065,181.59,181.52,0.71]
[1754717136307,6.22696065,181.59,181.56,8.01500195]
[1754717136511,0.72,181.58,181.56,8.01500195]
[1754717136918,0.72,181.58,181.55,8.01500195]
[1754717137819,8.73500195,181.57,181.51,8.01500195]
[1754717138067,0.72,181.56,181.49,8.01500195]
[1754717138269,8.73500195,181.56,181.5,8.01500195]
[1754717138582,13.52312643,181.55,181.5,8.01500195]
[1754717138746,8.01500195,181.52,181.48,42.94]
[1754717138948,0.72,181.51,181.46,1e-08]
[1754717139182,8.01500195,181.49,181.46,1e-08]
[1754717139484,8.01500195,181.48,181.46,1e-08]
[1754717139864,8.73500195,181.47,181.46,1e-08]
[1754717140180,0.72,181.47,181.46,1e-08]
[1754717140388,8.73500195,181.48,181.46,1e-08]
[1754717140683,5.5105527,181.47,181.46,1e-08]
[1754717141049,6.2305527,181.47,181.46,1e-08]
[1754717141353,5.51029543,181.48,181.46,1e-08]
[1754717141557,5.50962864,181.51,181.47,8.01500195]
[1754717141754,5.50962864,181.51,181.48,8.01500195]
[1754717142162,0.72,181.5,181.46,8.01500196]
[1754717142648,5.50994545,181.49,181.46,8.01500196]
[1754717142849,5.50933832,181.51,181.48,8.01500195]
[1754717143068,5.50873133,181.53,181.5,8.01500195]
[1754717143275,5.50873133,181.53,181.48,0.71]
[1754717143276,5.50873133,181.53,181.51,8.01500195]
[1754717144211,5.50873133,181.53,181.49,8.01500195]
[1754717144212,6.22873133,181.53,181.49,8.01500195]
[1754717144363,6.22873133,181.53,181.5,8.01500195]
[1754717144570,5.50873133,181.53,181.51,8.01500195]
[1754717144889,5.50842789,181.54,181.51,8.01500195]
[1754717145255,5.50842789,181.54,181.48,0.71]
[1754717145464,5.50842789,181.54,181.52,0.5]
[1754717145978,6.22842789,181.54,181.52,0.5]
[1754717146973,5.50842789,181.54,181.52,0.5]
[1754717148071,0.72,181.53,181.52,0.5]
[1754717148776,6.22873133,181.53,181.52,0.5]
[1754717152288,5.50873133,181.53,181.52,0.5]
[1754717152476,6.22873133,181.53,181.52,0.5]
[1754717152972,0.03,181.54,181.53,15.10621557]
[1754717153173,0.03,181.56,181.55,41.39053871]
[1754717153399,0.03,181.56,181.55,49.40554066]
[1754717153580,0.03,181.56,181.55,50.11554066]
[1754717154100,0.03,181.56,181.53,15.10621557]
[1754717154278,0.03,181.56,181.55,8.72500195]
[1754717155600,0.03,181.56,181.55,24.6663531]
[1754717155792,0.03,181.56,181.55,30.17447758]
[1754717155998,0.03,181.56,181.55,29.62366514]
[1754717159217,0.03,181.56,181.55,30.17447758]
[1754717159598,0.03,181.56,181.55,29.62366514]
[1754717160478,0.03,181.56,181.55,23.12121752]
[1754717160679,0.03,181.56,181.55,65.84121752]
[1754717160897,0.03,181.56,181.55,66.12554066]
[1754717161090,0.03,181.56,181.55,65.98337909]
[1754717161521,0.75,181.56,181.52,0.5]
[1754717161697,0.03,181.56,181.55,8.01500195]
[1754717162009,0.03,181.56,181.52,43.22]
[1754717162010,0.75,181.56,181.52,43.22]
[1754717162591,5.50812448,181.55,181.52,43.22]
[1754717162788,0.72,181.54,181.52,43.22]
[1754717162994,5.50812448,181.55,181.52,43.22]
[1754717162995,0.72,181.53,181.52,43.22]
[1754717163600,0.72,181.53,181.52,51.23500195]
[1754717163803,0.72,181.53,181.52,43.22]
[1754717164306,0.72,181.53,181.52,0.5]
[1754717164706,6.22873133,181.53,181.52,0.5]
[1754717166706,5.50839599,181.55,181.52,0.5]
[1754717167008,5.50839599,181.55,181.53,8.01500195]
[1754717167583,6.207882,181.56,181.53,8.01500195]
[1754717169506,0.67,181.55,181.53,8.01500195]
[1754717170616,5.50842789,181.54,181.52,51.17500195]
[1754717170810,5.53810732,181.56,181.52,43.16]
[1754717170995,5.53810732,181.56,181.54,8.01500195]
[1754717171511,0.67,181.55,181.53,8.01500195]
[1754717171745,0.67,181.55,181.52,43.16]
[1754717171922,0.67,181.55,181.52,51.17500195]
[1754717172617,0.03,181.56,181.54,8.01500195]
[1754717172786,6.20793031,181.56,181.52,43.16]
[1754717172989,6.20793031,181.56,181.54,8.01500195]
[1754717173404,6.20793031,181.56,181.52,43.16]
[1754717173623,0.67,181.55,181.52,43.16]
[1754717173918,0.67,181.55,181.53,8.01500195]
[1754717174802,5.5081861,181.55,181.53,4.91677535]
[1754717174997,5.5081861,181.55,181.54,4.91677535]
[1754717176208,6.1781861,181.55,181.53,4.91677535]
[1754717177031,0.03,181.56,181.53,4.91677535]
[1754717177326,0.7,181.56,181.53,4.91677535]
[1754717177624,0.7,181.56,181.54,4.91677535]
[1754717177814,0.03,181.56,181.54,4.91677535]
[1754717178722,0.03,181.56,181.52,43.16]
[1754717178924,0.03,181.56,181.53,4.91677535]
[1754717179128,0.67,181.55,181.52,43.16]
[1754717179304,0.03,181.56,181.54,4.91677535]
[1754717179706,0.67,181.55,181.53,4.91677535]
[1754717179917,0.03,181.56,181.54,4.91677535]
[1754717180635,0.67,181.55,181.52,48.07677535]
[1754717180836,6.17842789,181.54,181.52,0.5]
[1754717181051,0.67,181.53,181.52,0.5]
[1754717181335,5.50842789,181.54,181.52,5.41677535]
[1754717181520,5.50817111,181.55,181.53,4.91677535]
[1754717182023,5.5378737,181.56,181.54,4.91677535]
[1754717182226,5.5378737,181.56,181.53,4.91677535]
[1754717182447,0.67,181.55,181.53,4.91677535]
[1754717182814,6.1783869,181.55,181.53,4.91677535]
[1754717183011,0.67,181.54,181.52,43.04]
[1754717183224,0.67,181.53,181.52,43.04]
[1754717183522,0.67,181.53,181.52,0.5]
[1754717183917,5.5083869,181.55,181.52,0.5]
[1754717184125,0.67,181.54,181.52,0.5]
[1754717184755,5.5083869,181.55,181.52,0.5]
[1754717185112,5.5083869,181.55,181.52,5.41677535]
[1754717185312,5.5378425,181.56,181.52,1.21]
[1754717185529,5.5378425,181.56,181.54,4.91677535]
[1754717185735,0.03,181.56,181.55,4.91677535]
[1754717187025,0.03,181.56,181.55,5.62677535]
[1754717187422,0.03,181.56,181.53,42.5]
[1754717187628,0.03,181.56,181.55,4.91677535]
[1754717188224,0.03,181.56,181.53,42.5]
[1754717188426,0.03,181.56,181.54,4.91677535]
[1754717189044,6.20787104,181.56,181.54,4.91677535]
[1754717189449,6.20787104,181.56,181.53,47.41677535]
[1754717189819,0.03,181.56,181.55,4.91677535]
[1754717190419,0.03,181.56,181.53,42.5]
[1754717190823,0.03,181.56,181.53,43.21]
[1754717191046,0.03,181.56,181.53,47.41677535]
[1754717191349,0.67,181.55,181.53,47.41677535]
[1754717191726,0.67,181.55,181.53,42.5]
[1754717192035,0.03,181.56,181.54,4.91677535]
[1754717192745,0.03,181.56,181.55,4.91677535]
[1754717193730,0.03,181.56,181.55,5.59677535]
[1754717194339,0.03,181.56,181.55,11.10489983]
[1754717194650,0.03,181.56,181.55,5.59677535]
[1754717195259,0.03,181.56,181.55,11.10489983]
[1754717195423,0.03,181.56,181.55,5.59677535]
[1754717195620,0.03,181.56,181.55,11.10489983]
[1754717196553,0.03,181.56,181.55,5.59677535]
[1754717196762,0.03,181.56,181.55,30.91677535]
[1754717199667,0.03,181.56,181.55,31.59677535]
[1754717199839,0.03,181.56,181.55,37.10489983]
[1754717200623,0.03,181.56,181.55,31.59677535]
[1754717200947,0.03,181.56,181.55,37.10489983]
[1754717201861,0.03,181.56,181.55,52.49543854]
[1754717202228,0.03,181.56,181.55,94.83543854]
[1754717203029,0.03,181.56,181.55,89.91866319]
[1754717203233,0.03,181.56,181.55,94.83543854]
[1754717203540,0.03,181.56,181.55,99.23886307]
[1754717204146,0.03,181.56,181.55,99.78967551]
[1754717204456,0.03,181.56,181.55,95.38625098]
[1754717204756,0.03,181.56,181.55,99.74920174]
[1754717205728,0.03,181.56,181.55,95.38625098]
[1754717207631,0.03,181.56,181.55,95.88625098]
[1754717208249,0.03,181.58,181.56,15.39053871]
[1754717208452,0.03,181.58,181.57,52.72429311]
[1754717208637,0.03,181.58,181.57,53.40429311]
[1754717209947,0.03,181.6,181.58,15.10621557]
[1754717210154,0.03,181.6,181.59,62.58731406]
[1754717210356,0.03,181.6,181.59,63.26731406]
[1754717210545,0.03,181.6,181.59,68.77422523]
[1754717212752,0.03,181.6,181.59,63.85744988]
[1754717212959,0.03,181.62,181.6,15.10621557]
[1754717213159,0.1,181.63,181.61,68.01471988]
[1754717213369,0.1,181.63,181.62,25.22408941]
[1754717213546,2.60110342,181.68,181.65,41.39053871]
[1754717213736,2.60110342,181.68,181.65,88.54731406]
[1754717213936,2.60110342,181.68,181.65,89.22731406]
[1754717214565,2.60110342,181.68,181.65,88.54731406]
[1754717214964,2.60110342,181.68,181.65,94.05240627]
[1754717215152,2.60110342,181.68,181.65,96.65351027]
[1754717216038,13.75241784,181.79,181.66,15.39053871]
[1754717216284,0.67,181.72,181.7,15.10621557]
[1754717216559,13.75241784,181.79,181.71,42.22]
[1754717217056,0.67,181.78,181.71,42.22]
[1754717217444,5.58677535,181.78,181.71,42.22]
[1754717217642,4.91677535,181.78,181.71,42.22]
[1754717217863,0.67,181.77,181.74,4.91677535]
[1754717218244,0.67,181.77,181.75,4.91677535]
[1754717218565,0.67,181.77,181.74,4.91677535]
[1754717218761,0.67,181.77,181.75,4.91677535]
[1754717219652,0.67,181.77,181.73,42.2]
[1754717219653,0.67,181.77,181.74,4.91677535]
[1754717219833,0.67,181.76,181.74,47.11677535]
[1754717220041,0.67,181.75,181.74,47.11677535]
[1754717221570,0.67,181.75,181.74,42.2]
[1754717221786,0.67,181.75,181.74,47.11677535]
[1754717221949,5.50115524,181.78,181.74,42.2]
[1754717222145,0.67,181.77,181.74,42.2]
[1754717222489,0.67,181.79,181.76,4.91677535]
[1754717222781,0.67,181.79,181.78,4.91677535]
[1754717223571,0.67,181.79,181.77,42.16]
[1754717223874,0.67,181.79,181.78,4.91677535]
[1754717224075,14.34055151,181.81,181.78,4.91677535]
[1754717224376,18.66456303,181.85,181.79,42.14]
[1754717224558,4.91677535,181.84,181.79,47.05677535]
[1754717224754,24.16446561,181.84,181.79,47.05677535]
[1754717224955,0.69,181.83,181.79,47.05677535]
[1754717225476,0.69,181.83,181.8,4.91677535]
[1754717226146,0.69,181.83,181.79,47.05677535]
[1754717226656,5.499945,181.82,181.79,47.05677535]
[1754717226855,0.69,181.81,181.79,47.05677535]
[1754717227085,0.69,181.8,181.79,42.14]
[1754717227379,5.499945,181.82,181.79,47.05677535]
[1754717227380,0.69,181.82,181.79,47.05677535]
[1754717227678,5.49934007,181.84,181.79,47.05677535]
[1754717227884,0.69,181.81,181.8,4.91677535]
[1754717228292,0.69,181.83,181.8,4.91677535]
[1754717228588,0.69,181.83,181.81,47.03677535]
[1754717228996,0.69,181.83,181.81,42.12]
[1754717229168,0.69,181.83,181.81,47.03677535]
[1754717229556,0.69,181.83,181.82,4.91677535]
[1754717229966,6.18908099,181.85,181.82,4.91677535]
[1754717230157,6.18908099,181.85,181.83,42.1]
[1754717230462,6.18908099,181.85,181.83,47.01677535]
[1754717230668,0.69,181.84,181.83,47.01677535]
[1754717230864,0.69,181.84,181.83,42.1]
[1754717231280,6.18902464,181.86,181.83,47.01677535]
[1754717231464,6.18902464,181.86,181.83,42.1]
[1754717231656,0.69,181.85,181.84,4.91677535]
[1754717231856,0.69,181.85,181.83,42.1]
[1754717232067,0.69,181.84,181.83,42.1]
[1754717233265,4.91677535,181.88,181.83,47.01677535]
[1754717233573,5.499025,181.93,181.83,47.01677535]
[1754717233771,81.80297653,181.96,181.84,4.91677535]
[1754717233992,81.80297653,181.96,181.85,42.06]
[1754717233993,16.508461,181.95,181.85,42.06]
[1754717234305,55.80297653,181.96,181.86,5.63677535]
[1754717234477,4.91677535,181.92,181.86,5.63677535]
[1754717234670,4.91677535,181.91,181.86,4.91677535]
[1754717234865,19.23605385,181.95,181.85,42.06]
[1754717235075,4.91677535,181.91,181.85,42.06]
[1754717235376,5.49752611,181.9,181.86,4.91677535]
[1754717235584,0.69,181.89,181.86,4.91677535]
[1754717235908,5.49752611,181.9,181.86,4.91677535]
[1754717236086,0.03,181.87,181.81,0.28432314]
[1754717236276,0.72,181.87,181.83,30.91677535]
[1754717236782,0.69,181.86,181.83,26.0]
[1754717236981,0.69,181.86,181.82,4.91677535]
[1754717237182,5.49964252,181.83,181.78,0.72]
[1754717237375,0.69,181.82,181.79,42.04]
[1754717237571,4.91677535,181.81,181.79,42.04]
[1754717237797,5.49964252,181.83,181.79,46.95677535]
[1754717238007,5.49964252,181.83,181.8,5.63677535]
[1754717238406,5.49964252,181.83,181.81,5.63677535]
[1754717238605,5.49964252,181.83,181.82,42.04]
[1754717238915,4.91677535,181.86,181.82,42.04]
[1754717239092,0.03,181.87,181.82,42.04]
[1754717239286,4.91677535,181.86,181.82,42.04]
[1754717239810,0.03,181.87,181.83,0.72]
[1754717240194,0.03,181.87,181.82,42.04]
[1754717240195,0.69,181.86,181.82,42.04]
[1754717240406,4.94677535,181.87,181.82,42.04]
[1754717240407,5.60677535,181.85,181.82,42.04]
[1754717240576,0.69,181.84,181.82,42.04]
[1754717240776,4.91677535,181.86,181.82,42.04]
[1754717240977,0.69,181.86,181.82,42.04]
[1754717241284,5.49903766,181.85,181.82,42.76]
[1754717241794,5.49903766,181.85,181.82,42.04]
[1754717241996,5.49903766,181.85,181.82,42.76]
[1754717242417,6.18903766,181.85,181.82,42.04]
[1754717243012,6.18903766,181.85,181.8,0.72]
[1754717243013,0.69,181.84,181.8,5.63677535]
[1754717243213,5.60677535,181.83,181.81,42.0]
[1754717243416,5.4998824,181.83,181.81,42.0]
[1754717243592,5.4998824,181.83,181.75,20.60525257]
[1754717243593,5.60677535,181.82,181.77,0.72]
[1754717243788,4.91677535,181.81,181.78,42.0]
[1754717243984,5.60677535,181.81,181.78,42.0]
[1754717244288,5.49903766,181.85,181.8,4.91677535]
[1754717244519,0.03,181.87,181.8,4.91677535]
[1754717244520,0.03,181.87,181.84,4.91677535]
[1754717244720,0.03,181.87,181.86,4.91677535]
[1754717244895,0.03,181.87,181.86,46.89677535]
[1754717245096,0.03,181.87,181.86,42.7]
[1754717245311,0.03,181.87,181.86,47.61677535]
[1754717246113,0.03,181.87,181.86,5.63677535]
[1754717246320,0.03,181.87,181.86,46.89677535]
[1754717246695,0.03,181.87,181.85,26.0]
[1754717246921,0.03,181.87,181.86,47.61677535]
[1754717247800,0.03,181.87,181.86,42.7]
[1754717248106,0.03,181.87,181.86,47.61677535]
[1754717249917,0.03,181.87,181.86,41.96]
[1754717250102,0.03,181.87,181.86,46.87677535]
[1754717250301,0.03,181.87,181.86,47.59677535]
[1754717251221,0.72,181.87,181.81,14.461336]
[1754717251393,0.72,181.87,181.82,41.94]
[1754717251394,5.49873529,181.86,181.82,41.94]
[1754717251597,5.49873529,181.86,181.83,5.63677535]
[1754717251912,5.52846848,181.87,181.84,4.91677535]
[1754717252092,5.52846848,181.87,181.85,41.94]
[1754717252293,5.52846848,181.87,181.85,46.85677535]
[1754717252898,0.03,181.87,181.85,47.57677535]
[1754717253511,0.03,181.87,181.86,4.91677535]
[1754717253715,0.03,181.87,181.86,20.72299092]
[1754717253901,0.03,181.87,181.86,21.00731406]
[1754717254219,0.03,181.87,181.86,62.94731406]
[1754717254922,0.03,181.87,181.86,58.03053871]
[1754717255111,0.03,181.87,181.86,62.92731406]
[1754717255517,0.03,181.87,181.86,21.00731406]
[1754717255842,0.03,181.87,181.86,68.42604935]
[1754717256134,0.03,181.87,181.86,21.00731406]
[1754717256310,0.03,181.87,181.86,62.92731406]
[1754717256920,0.03,181.87,181.86,21.00731406]
[1754717257116,0.03,181.87,181.86,88.92731406]
[1754717257632,0.03,181.87,181.86,68.97592287]
[1754717257921,0.03,181.87,181.86,68.42604935]
[1754717258519,0.03,181.87,181.86,69.695599]
[1754717258714,0.03,181.87,181.86,74.59237435]
[1754717260002,0.03,181.87,181.86,32.69237435]
[1754717260324,0.03,181.87,181.86,52.50604935]
[1754717260504,0.03,181.87,181.86,74.59237435]
[1754717260821,0.03,181.87,181.86,26.50604935]
[1754717261123,0.03,181.87,181.86,69.09363906]
[1754717261320,0.03,181.87,181.83,0.7]
[1754717261505,0.03,181.87,181.85,4.91677535]
[1754717261847,0.03,181.87,181.86,26.0]
[1754717262010,0.03,181.87,181.86,46.79677535]
[1754717262322,0.03,181.87,181.86,47.49677535]
[1754717262621,0.03,181.87,181.86,42.58]
[1754717263015,0.03,181.87,181.86,47.49677535]
[1754717264020,0.72,181.87,181.85,30.91677535]
[1754717264329,0.03,181.87,181.86,46.79677535]
[1754717264506,0.03,181.87,181.86,62.88731406]
[1754717265226,0.03,181.87,181.86,68.38604935]
[1754717265416,0.03,181.87,181.86,62.88731406]
[1754717266293,0.03,181.87,181.86,68.38604935]
[1754717266910,0.03,181.87,181.86,63.469274]
[1754717267109,0.03,181.87,181.86,68.38604935]
[1754717268727,0.03,181.87,181.86,21.00731406]
[1754717269025,0.03,181.87,181.86,46.75677535]
[1754717269405,0.03,181.87,181.86,62.84731406]
[1754717269621,0.03,181.87,181.86,68.84604935]
[1754717270016,0.03,181.87,181.86,69.39592287]
[1754717270333,0.03,181.87,181.86,68.84604935]
[1754717271213,0.03,181.87,181.86,69.39592287]
[1754717271739,0.03,181.87,181.86,63.929274]
[1754717272030,0.03,181.87,181.86,68.84604935]
[1754717272531,0.03,181.87,181.86,79.25910535]
[1754717274212,0.03,181.87,181.86,79.80897887]
[1754717274410,0.69,181.95,181.9,41.10621557]
[1754717274609,0.69,181.95,181.94,4.91677535]
[1754717274834,0.69,181.95,181.94,41.82]
[1754717275005,16.0,182.0,181.94,41.82]
[1754717275204,0.69,181.97,181.95,4.91677535]
[1754717275414,20.91677535,182.0,181.96,41.82]
[1754717276029,0.69,181.99,181.96,41.82]
[1754717276255,4.91677535,181.98,181.96,41.82]
[1754717276525,5.60677535,181.97,181.96,41.82]
[1754717276721,5.60677535,181.97,181.92,4.91677535]
[1754717277031,0.69,181.96,181.93,46.71677535]
[1754717277226,0.69,181.95,181.93,46.71677535]
[1754717277424,0.69,181.94,181.93,46.71677535]
[1754717277737,0.69,181.97,181.93,52.21329531]
[1754717277919,4.91677535,181.99,181.94,4.91677535]
[1754717278114,0.69,181.96,181.95,41.8]
[1754717279528,0.69,181.96,181.93,7.71703847]
[1754717279834,0.69,181.96,181.94,41.8]
[1754717280337,0.69,181.95,181.94,41.8]
[1754717281027,0.69,181.97,181.94,46.69677535]
[1754717281234,0.69,181.96,181.93,7.71703847]
[1754717281432,4.91677535,181.98,181.94,41.78]
[1754717281602,0.69,181.95,181.93,7.71703847]
[1754717281802,0.69,181.95,181.93,4.91677535]
[1754717282008,0.69,181.94,181.91,30.91677535]
[1754717282224,4.91677535,181.94,181.87,5.494849]
[1754717282423,0.69,181.93,181.88,46.67677535]
[1754717282626,0.69,181.93,181.88,47.37677535]
[1754717282836,0.69,181.93,181.89,5.61677535]
[1754717283243,0.69,181.93,181.89,0.7]
[1754717283550,0.69,181.93,181.9,41.76]
[1754717283715,6.18663321,181.93,181.9,41.76]
[1754717284520,4.91677535,181.91,181.86,0.5]
[1754717284727,0.66,181.92,181.86,0.5]
[1754717284728,4.91677535,181.89,181.87,41.76]
[1754717285022,0.66,181.88,181.87,41.76]
[1754717286237,0.66,181.88,181.86,0.5]
[1754717286410,0.66,181.88,181.87,41.76]
[1754717286846,6.15818231,181.88,181.87,41.74]
[1754717288974,6.15818231,181.88,181.86,0.5]
[1754717289145,10.41495766,181.88,181.87,41.74]
[1754717289341,5.49818231,181.88,181.87,41.74]
[1754717289763,6.15818231,181.88,181.87,41.74]
[1754717291466,6.15818231,181.88,181.86,0.5]
[1754717291670,0.66,181.87,181.86,0.5]
[1754717291890,0.66,181.87,181.86,42.22]
[1754717293295,6.15843294,181.87,181.86,42.22]
[1754717293806,6.15843294,181.87,181.86,0.5]
[1754717293976,6.15843294,181.87,181.86,42.22]
[1754717295400,11.07520829,181.87,181.86,0.5]
[1754717295583,11.07520829,181.87,181.83,41.78]
[1754717295785,4.91677535,181.84,181.83,0.06]
[1754717296190,5.57677535,181.84,181.83,0.06]
[1754717296389,0.66,181.84,181.83,0.06]
[1754717297005,5.57677535,181.84,181.83,0.06]
[1754717297181,0.66,181.84,181.83,0.06]
[1754717297380,6.15934007,181.84,181.83,0.06]
[1754717297579,11.07611542,181.84,181.83,0.06]
[1754717299316,6.15934007,181.84,181.83,0.06]
[1754717299822,11.07611542,181.84,181.83,0.06]
[1754717300003,6.15934007,181.84,181.83,0.06]
[1754717300185,11.07611542,181.84,181.83,0.06]
[1754717300816,11.07611542,181.84,181.81,0.06]
[1754717300992,4.91677535,181.82,181.79,0.06]
[1754717301190,9.8335507,181.8,181.76,0.06]
[1754717301504,5.57677535,181.79,181.76,0.06]
[1754717301885,11.07762798,181.79,181.76,0.06]
[1754717302616,5.50085263,181.79,181.77,4.97677535]
[1754717302997,5.57677535,181.82,181.78,4.97677535]
[1754717302998,5.50024751,181.81,181.78,4.97677535]
[1754717303205,0.66,181.84,181.8,4.91677535]
[1754717303393,0.66,181.84,181.8,5.61677535]
[1754717303990,5.49964252,181.83,181.8,5.61677535]